[Event "44th Chess Olympiad Open 2022"]
[Site "Chennai"]
[Date "2022.08.06"]
[Round "8.37"]
[White "Ungurs, Edgars"]
[Black "Verdier, Patrice"]
[Result "1-0"]
[WhiteElo "2206"]
[BlackElo "2017"]
[Annotator "NA RC"]
[PlyCount "87"]
[EventDate "2022.??.??"]
[TimeControl "60"]

1. e4 {[%emt 0:00:05]} e6 {[%emt 0:00:16]} 2. d4 {[%emt 0:00:30]} d5 {[%emt 0:
00:00]} 3. Nd2 {[%emt 0:00:09]} Nf6 {[%emt 0:00:28]} 4. e5 {[%emt 0:00:25]}
Nfd7 {[%emt 0:00:05]} 5. Bd3 {[%emt 0:00:33]} c5 {[%emt 0:00:08]} 6. c3 {
[%emt 0:00:13]} Nc6 {[%emt 0:00:19]} 7. Ndf3 {[%emt 0:00:50]} cxd4 {[%emt 0:00:
00]} 8. cxd4 {[%emt 0:00:18]} f6 {[%emt 0:11:05]} 9. exf6 {[%emt 0:00:36]} Nxf6
{[%emt 0:00:15]} 10. Nh3 {[%emt 0:00:55]} Bd6 {[%emt 0:03:38]} 11. O-O {
[%emt 0:01:02]} O-O {[%emt 0:00:37]} 12. Re1 {[%emt 0:01:10]} Qc7 {[%emt 0:00:
00]} 13. Nhg5 {[%emt 0:01:04]} e5 {[%emt 0:19:02]} 14. dxe5 {[%emt 0:01:47]}
Nxe5 {[%emt 0:00:00]} 15. Rxe5 {[%emt 0:24:29]} Bxe5 {[%emt 0:00:29]} 16. Bxh7+
{[%emt 0:00:08]} Kh8 {[%emt 0:16:29]} 17. Nh4 {[%emt 0:00:43]} g6 {[%emt 0:00:
00]} 18. Nxg6+ {[%emt 0:11:24]} Kg7 {[%emt 0:00:06]} 19. Nxf8 {[%emt 0:04:32]}
Kxf8 {[%emt 0:01:10]} 20. Bd3 {[%emt 0:00:57]} Bxh2+ {[%emt 0:03:38]} 21. Kf1 {
[%emt 0:02:37]} Kg8 {[%emt 0:05:28]} 22. Be3 {[%emt 0:09:12]} Bg4 {[%emt 0:00:
00]} 23. Qb3 {[%emt 0:02:11]} Re8 {[%emt 0:01:50]} 24. Ne4 {[%emt 0:11:42]}
Nxe4 {[%emt 0:06:31]} 25. Qxd5+ {[%emt 0:04:19]} Qf7 {[%emt 0:01:12]} 26. Bxe4
{[%emt 0:00:03]} Be6 {[%emt 0:03:22]} 27. Qg5+ {[%emt 0:00:44]} Qg7 {[%emt 0:
00:00]} 28. Qxg7+ {[%emt 0:05:20]} Kxg7 {[%emt 0:00:04]} 29. Bd4+ {[%emt 0:00:
00]} Kf7 {[%emt 0:00:42]} 30. f3 {[%emt 0:00:15]} Rd8 {[%emt 0:02:02]} 31. Be3
{[%emt 0:03:49]} Bg3 {[%emt 0:00:31]} 32. b3 {[%emt 0:01:32]} b6 {[%emt 0:00:
00]} 33. Ke2 {[%emt 0:00:56]} Be5 {[%emt 0:00:45]} 34. Rh1 {[%emt 0:00:31]} Kg8
{[%emt 0:00:34]} 35. Rd1 {[%emt 0:05:33]} Re8 {[%emt 0:00:33]} 36. Bd5 {
[%emt 0:00:53]} Kf7 {[%emt 0:00:32]} 37. Kf2 {[%emt 0:00:40]} Rc8 {[%emt 0:00:
00]} 38. Bxe6+ {[%emt 0:00:33]} Kxe6 {[%emt 0:00:05]} 39. f4 {[%emt 0:00:23]}
Rf8 {[%emt 0:00:42]} 40. Kf3 {[%emt 0:00:21]} Bc7 {[%emt 0:02:05]} 41. g4 {
[%emt 0:30:43]} Rh8 {[%emt 0:04:09]} 42. f5+ {[%emt 0:00:00]} Ke7 {[%emt 0:00:
00]} 43. Bf4 {[%emt 0:00:00]} Rh3+ {[%emt 0:02:31]} 44. Ke4 {[%emt 0:00:00]}
1-0

[Event "44th Chess Olympiad Open 2022"]
[Site "Chennai"]
[Date "2022.08.06"]
[Round "8.37"]
[White "Ribbegren, Karl Johan"]
[Black "Golubovskis, Maksims"]
[Result "1/2-1/2"]
[WhiteElo "2198"]
[BlackElo "2219"]
[Annotator "NA RC"]
[PlyCount "47"]
[EventDate "2022.??.??"]
[TimeControl "60"]

1. d4 {[%emt 0:00:02]} Nf6 {[%emt 0:00:10]} 2. Nf3 {[%emt 0:00:21]} e6 {
[%emt 0:00:12]} 3. e3 {[%emt 0:00:53]} b6 {[%emt 0:01:47]} 4. Nbd2 {[%emt 0:00:
00]} Bb7 {[%emt 0:00:21]} 5. Bd3 {[%emt 0:00:42]} c5 {[%emt 0:01:37]} 6. O-O {
[%emt 0:01:37]} Be7 {[%emt 0:01:31]} 7. b3 {[%emt 0:01:35]} O-O {[%emt 0:01:37]
} 8. Bb2 {[%emt 0:01:48]} d5 {[%emt 0:05:03]} 9. c4 {[%emt 0:13:22]} Nc6 {
[%emt 0:12:50]} 10. Rc1 {[%emt 0:02:05]} Rc8 {[%emt 0:02:54]} 11. Qe2 {[%emt 0:
00:00]} dxc4 {[%emt 0:12:14]} 12. Nxc4 {[%emt 0:05:08]} cxd4 {[%emt 0:04:48]}
13. Nxd4 {[%emt 0:07:28]} Nxd4 {[%emt 0:01:35]} 14. Bxd4 {[%emt 0:00:39]} Qd5 {
[%emt 0:07:45]} 15. f3 {[%emt 0:00:14]} Qg5 {[%emt 0:12:28]} 16. Ne5 {[%emt 0:
00:00]} Ba3 {[%emt 0:04:03]} 17. Rxc8 {[%emt 0:00:43]} Rxc8 {[%emt 0:02:54]}
18. Ba6 {[%emt 0:07:27]} Bxa6 {[%emt 0:01:01]} 19. Qxa6 {[%emt 0:00:05]} Rc2 {
[%emt 0:00:22]} 20. Rf2 {[%emt 0:01:44]} Rc1+ {[%emt 0:00:30]} 21. Rf1 {
[%emt 0:00:17]} Rc2 {[%emt 0:00:35]} 22. Rf2 {[%emt 0:00:29]} Rc1+ {[%emt 0:00:
00]} 23. Rf1 {[%emt 0:00:08]} Rc2 {[%emt 0:00:10]} 24. Rf2 {[%emt 0:00:15]}
1/2-1/2

[Event "44th Chess Olympiad Open 2022"]
[Site "Chennai"]
[Date "2022.08.06"]
[Round "8.38"]
[White "Murshed, Niaz"]
[Black "Xie, Felix"]
[Result "1/2-1/2"]
[WhiteElo "2413"]
[BlackElo "2224"]
[Annotator "TA"]
[PlyCount "83"]
[EventDate "2022.??.??"]
[TimeControl "60"]

{[%evp 22,83,0,0,0,-25,0,0,0,0,0,0,0,0,0,0,0,0,0,0,0,0,0,0,0,0,0,0,0,0,0,0,0,0,
0,0,0,0,0,0,0,0,0,0,0,0,0,0,0,0,0,0,0,-8,0,0,0,-8,-8,-8,-8,-8,-8,-8]} 1. d4 {
[%emt 0:00:04]} d5 {[%emt 0:00:22]} 2. c4 {[%emt 0:00:29]} e6 {[%emt 0:00:10]}
3. Nc3 {[%emt 0:00:55]} Be7 {[%emt 0:00:15]} 4. Nf3 {[%emt 0:00:37]} Nf6 {
[%emt 0:00:18]} 5. Bg5 {[%emt 0:00:06]} h6 {[%emt 0:00:25]} 6. Bh4 {[%emt 0:00:
00]} O-O {[%emt 0:00:11]} 7. e3 {[%emt 0:00:07]} b6 {[%emt 0:02:23]} 8. Bd3 {
[%emt 0:03:54]} Bb7 {[%emt 0:00:30]} 9. O-O {[%emt 0:00:18]} Nbd7 {[%emt 0:00:
00][%cal Yb8d7,Yd7f6,Yf6d5]} 10. Rc1 {[%emt 0:13:11][%cal Ya1c1,Yc1c3,Yc3c2]}
c5 {[%emt 0:01:22]} 11. cxd5 {[%emt 0:01:55]} Nxd5 {[%emt 0:00:00]} 12. Bg3 {
[%emt 0:02:03]} Nxc3 {[%emt 0:08:17] D58: Queen's Gambit Declined: Tartakower
Defence.} 13. Rxc3 {[%emt 0:08:43]} Nf6 {[%emt 0:01:44]} 14. dxc5 {[%emt 0:03:
43] The position is equal.} Bxc5 {[%emt 0:01:36] [#]} 15. a3 $146 {[%emt 0:02:
58]} ({Predecessor:} 15. Qb3 Qe7 16. Rd1 Rfd8 17. Be5 Rd5 18. Bc4 Rxd1+ 19.
Qxd1 Rd8 20. Rd3 Rxd3 21. Qxd3 {½-½ (78) Vogelbacher,G (2131)-Sadewasser,A 
(2216) Germany 2011}) 15... Nd5 {[%emt 0:17:44]} 16. Rc2 {[%emt 0:00:23]} Bd6 {
[%emt 0:05:44]} 17. Qe2 {[%emt 0:09:27]} Bxg3 {[%emt 0:00:00]} 18. hxg3 {
[%emt 0:00:06]} Rc8 {[%emt 0:00:55]} 19. Rfc1 {[%emt 0:03:34]} Qd7 {[%emt 0:08:
08]} 20. Nd4 {[%emt 0:06:23]} Rxc2 {[%emt 0:01:47]} 21. Rxc2 {[%emt 0:00:10]}
Rc8 {[%emt 0:00:46]} 22. Bb5 {[%emt 0:04:32]} Rxc2 {[%emt 0:00:00]} 23. Qxc2 {
[%emt 0:00:31]} Qc7 {[%emt 0:00:27]} 24. Qxc7 {[%emt 0:02:28]} Nxc7 {[%emt 0:
00:19]} 25. Bc6 {[%emt 0:00:42]} Bxc6 {[%emt 0:02:51]} 26. Nxc6 $11 {[%emt 0:
00:06] Endgame KN-KN} a6 {[%emt 0:00:08]} 27. Kf1 {[%emt 0:10:55]} Kf8 {
[%emt 0:01:19]} 28. Ke2 {[%emt 0:00:05]} Ke8 {[%emt 0:00:00]} 29. Ne5 {[%emt 0:
02:21]} f6 {[%emt 0:03:57]} 30. Nc4 {[%emt 0:01:55]} b5 {[%emt 0:00:46]} 31.
Na5 {[%emt 0:00:54]} Kd7 {[%emt 0:00:45]} 32. b4 {[%emt 0:00:00]} e5 {[%emt 0:
06:34]} 33. Kd3 {[%emt 0:00:43]} f5 {[%emt 0:07:56]} 34. e4 {[%emt 0:01:51]} g6
{[%emt 0:02:37]} 35. f4 {[%emt 0:03:51]} exf4 {[%emt 0:00:00]} 36. gxf4 {
[%emt 0:00:19]} Ne6 {[%emt 0:00:10]} 37. g3 {[%emt 0:00:22][%cal Yg2g3,Yg3g4]}
h5 {[%emt 0:02:09]} 38. Ke3 {[%emt 0:04:46]} fxe4 {[%emt 0:03:59]} 39. Kxe4 {
[%emt 0:03:06]} Ng7 {[%emt 0:00:07]} 40. Nb3 {[%emt 0:01:04]} Nf5 {[%emt 0:01:
21]} 41. Kf3 {[%emt 0:30:06]} Kc6 {[%emt 0:00:00]} 42. g4 {[%emt 0:00:00] A
balanced but interesting game. Weighted Error Value: White=0.00 (flawless) /
Black=0.01 (flawless)} 1/2-1/2

[Event "44th Chess Olympiad Open 2022"]
[Site "Chennai"]
[Date "2022.08.06"]
[Round "8.38"]
[White "Hossain, Enamul"]
[Black "Gong, Daniel Hanwen"]
[Result "1/2-1/2"]
[WhiteElo "2377"]
[BlackElo "2296"]
[Annotator "TA"]
[PlyCount "173"]
[EventDate "2022.??.??"]
[TimeControl "60"]

{[%evp 30,173,28,40,46,40,35,40,41,40,36,22,51,30,41,12,57,36,55,55,62,24,24,
24,22,20,158,136,202,212,258,273,266,240,222,172,153,163,153,88,137,8,166,166,
162,161,154,147,188,95,95,95,95,39,146,51,51,22,22,22,51,51,51,0,0,0,0,0,0,0,0,
0,0,0,0,0,0,0,0,0,0,0,0,0,0,0,0,0,0,0,0,0,0,0,0,0,0,0,0,0,0,0,0,0,0,0,0,0,0,0,
0,0,0,0,0,0,0,0,0,0,0,0,0,0,0,0,0,0,0,0,0,0,0,0,0,0,0,0,0,0,0,0,0,0,0,0]} 1. e4
{[%emt 0:00:09]} c5 {[%emt 0:00:04]} 2. Nf3 {[%emt 0:00:16]} Nc6 {[%emt 0:00:
00]} 3. d4 {[%emt 0:00:47]} cxd4 {[%emt 0:00:04]} 4. Nxd4 {[%emt 0:00:08]} g6 {
[%emt 0:00:02]} 5. c4 {[%emt 0:00:29]} Nf6 {[%emt 0:00:05]} 6. Nc3 {[%emt 0:00:
00]} Nxd4 {[%emt 0:00:04]} 7. Qxd4 {[%emt 0:00:15]} d6 {[%emt 0:00:02]} 8. f3 {
[%emt 0:02:34]} Bg7 {[%emt 0:00:03]} 9. Be3 {[%emt 0:00:11]} O-O {[%emt 0:00:
00]} 10. Qd2 {[%emt 0:00:07]} Be6 {[%emt 0:00:03]} 11. Rc1 {[%emt 0:06:25]} Qa5
{[%emt 0:00:09]} 12. b3 {[%emt 0:01:09]} Rfc8 {[%emt 0:00:25]} 13. Be2 {
[%emt 0:01:56]} a6 {[%emt 0:00:03]} 14. Na4 {[%emt 0:01:39]} Qxd2+ {[%emt 0:00:
00]} 15. Kxd2 {[%emt 0:00:09]} Nd7 {[%emt 0:00:02]} 16. g4 {[%emt 0:00:37]}
Rcb8 {[%emt 0:01:03] B36: Sicilian: Maroczy Bind: Gurgenidze System.} 17. Nc3 {
[%emt 0:16:46] Prevents b5.} b5 {[%emt 0:00:04]} 18. Nd5 {[%emt 0:00:20]} Bxd5
{[%emt 0:00:05] White is slightly better.} 19. cxd5 {[%emt 0:07:34]} Nc5 {
[%emt 0:00:04] [#]} 20. Rc2 $146 {[%emt 0:06:51]} ({Predecessor:} 20. g5 Bb2
21. Rc2 Ba3 22. Rb1 a5 23. Kd1 Na6 24. Bf1 Nb4 25. Rd2 Rb7 26. f4 Na6 27. Rc2
Nb4 28. Rd2 Na6 29. Rc2 Nb4 30. Rd2 {½-½ (30) Aronian,L (2767)-Duda,J (2757)
Stavanger 2020}) 20... b4 {[%emt 0:00:13]} 21. Bc4 {[%emt 0:09:00]} a5 {
[%emt 0:04:01]} 22. g5 {[%emt 0:06:44]} a4 {[%emt 0:05:42]} 23. Bxc5 {[%emt 0:
00:00]} dxc5 {[%emt 0:00:09]} 24. f4 {[%emt 0:00:07]} axb3 {[%emt 0:00:16]} 25.
Bxb3 {[%emt 0:00:43]} Bc3+ {[%emt 0:00:33]} 26. Kd3 {[%emt 0:00:17]} Kg7 {
[%emt 0:05:31]} 27. h4 {[%emt 0:01:36][%cal Yh2h4,Yh4h5,Yh5h6,Yh6h7]} h6 {
[%emt 0:03:06]} (27... Rh8 $1 $11 {keeps the balance.}) 28. gxh6+ $1 $16 {
[%emt 0:02:09]} Kxh6 {[%emt 0:01:48] [#]} (28... Kh7 $16 {is a better defense.}
) 29. h5 $1 $18 {[%emt 0:07:42]} g5 {[%emt 0:10:35]} ({Not} 29... gxh5 30. Rch2
Rg8 31. Rxh5+ Kg7 32. d6 exd6 33. Rh7+ Kf8 34. Rxf7+ Ke8 35. Rhh7) 30. fxg5+ {
[%emt 0:00:26]} Kxg5 {[%emt 0:00:04]} 31. h6 {[%emt 0:00:07][%cal Yd5d6]
Strongly threatening d6!} Kg6 {[%emt 0:09:32]} 32. h7 {[%emt 0:00:33]} Kg7 {
[%emt 0:00:16]} 33. Rg2+ {[%emt 0:05:20]} Kh8 {[%emt 0:00:06]} 34. Rg5 {
[%emt 0:01:53]} (34. Rf2 $142) 34... Ra6 {[%emt 0:03:12]} (34... Bg7 $142) 35.
Rf5 {[%emt 0:03:43]} ({Better is} 35. e5 $16 {[%cal Yd5d6] aiming for d6!} Rg6
36. Rxg6 fxg6 37. Ke4) 35... Rf6 {[%emt 0:02:22]} (35... f6 $11) 36. Rxf6 {
[%emt 0:02:34]} Bxf6 {[%emt 0:00:03] Endgame [#] KRB-KRB} 37. Rh5 $1 {[%emt 0:
00:31]} Bd4 {[%emt 0:04:44]} 38. e5 {[%emt 0:03:55]} f6 {[%emt 0:00:00]} 39.
exf6 {[%emt 0:10:41]} (39. d6 $18) 39... Bxf6 $16 {[%emt 0:00:24]} 40. Kc4 {
[%emt 0:00:29]} Bd4 {[%emt 0:02:40]} 41. Rh4 {[%emt 0:05:51]} ({White should
play} 41. Bc2 $16) 41... Rc8 {[%emt 0:03:03]} (41... Rb6 $1 $14) 42. Kb5 {
[%emt 0:04:14]} (42. Re4 $16) 42... Be5 $14 {[%emt 0:01:16]} 43. Rh5 {[%emt 0:
00:00]} Bd6 {[%emt 0:00:08]} 44. Bc2 {[%emt 0:10:52]} Ra8 {[%emt 0:03:24]} 45.
Rg5 {[%emt 0:00:28]} Rc8 {[%emt 0:00:07]} 46. Kb6 {[%emt 0:01:36]} (46. Kc4 $14
) 46... c4 $1 $11 {[%emt 0:00:42] The position is equal.} 47. Kb7 {[%emt 0:00:
00]} b3 {[%emt 0:02:43]} 48. axb3 {[%emt 0:00:44]} cxb3 {[%emt 0:00:17]} 49.
Be4 {[%emt 0:00:35]} Rc7+ {[%emt 0:00:49]} 50. Ka6 {[%emt 0:03:23][%csl Gh7]
[%cal Rg5g8]} Rc8 {[%emt 0:00:21] Against Rg8+} 51. Kb6 {[%emt 0:02:02]} Bf4 {
[%emt 0:01:16]} 52. Rf5 {[%emt 0:01:01]} Bd6 {[%emt 0:01:53]} 53. Rf7 {[%emt 0:
00:00]} b2 {[%emt 0:00:19]} 54. Bb1 {[%emt 0:00:16]} Rb8+ {[%emt 0:02:26]} 55.
Kc6 {[%emt 0:00:02]} Rd8 $1 {[%emt 0:00:04]} 56. Kb5 {[%emt 0:00:49]} Rc8 {
[%emt 0:00:11]} 57. Kb6 {[%emt 0:01:42]} Rb8+ {[%emt 0:00:04]} 58. Kc6 {
[%emt 0:00:06]} Rd8 $1 {[%emt 0:00:01]} 59. Rf5 {[%emt 0:02:26]} Kg7 {[%emt 0:
00:00]} 60. Rh5 {[%emt 0:01:19]} Bf4 {[%emt 0:01:17]} 61. Kc5 {[%emt 0:00:00]}
Kh8 {[%emt 0:00:49]} 62. Rf5 {[%emt 0:00:50]} Bd6+ {[%emt 0:00:32]} 63. Kd4 {
[%emt 0:00:11]} Rc8 {[%emt 0:00:52]} 64. Rg5 {[%emt 0:00:28]} Bf4 {[%emt 0:00:
00]} 65. Rg6 {[%emt 0:01:50]} Rf8 {[%emt 0:01:22]} 66. Re6 {[%emt 0:00:59]} Bg5
{[%emt 0:01:15] ...Rf1 is the strong threat.} 67. Rb6 {[%emt 0:00:36]} Bf6+ {
[%emt 0:00:00]} 68. Ke3 {[%emt 0:00:19]} Rd8 {[%emt 0:00:40]} 69. Rb7 {[%emt 0:
00:00]} Kg7 {[%emt 0:02:31]} 70. Be4 {[%emt 0:00:21]} Kf7 {[%emt 0:01:06]} 71.
Kf4 {[%emt 0:00:24]} Bg7 {[%emt 0:01:49]} 72. Kg5 {[%emt 0:00:29]} Bf6+ {
[%emt 0:01:25]} 73. Kh5 {[%emt 0:00:33]} Be5 {[%emt 0:04:08]} 74. Bg6+ {
[%emt 0:00:21]} Kf6 {[%emt 0:00:37]} 75. Rb6+ {[%emt 0:00:47]} Kg7 {[%emt 0:00:
00]} 76. Be4 {[%emt 0:00:51]} Rb8 {[%emt 0:03:42]} 77. Rg6+ {[%emt 0:00:02]}
Kh8 {[%emt 0:00:06]} 78. Rg1 {[%emt 0:00:09]} Bg7 {[%emt 0:01:17]} 79. Kg6 {
[%emt 0:00:52]} Rf8 {[%emt 0:00:17]} 80. Bb1 {[%emt 0:00:59]} Rf6+ {[%emt 0:00:
00]} 81. Kh5 {[%emt 0:00:26]} Rf4 {[%emt 0:01:57]} 82. Re1 {[%emt 0:00:31]} Rd4
{[%emt 0:04:47]} 83. Rxe7 {[%emt 0:00:34] Re8+ would kill now.} Rxd5+ {[%emt 0:
00:00]} 84. Kg4 {[%emt 0:00:23] Threatening mate with Re8+.} Rd8 {[%emt 0:00:
00] Prevents Re8+.} 85. Rb7 {[%emt 0:00:11]} Rf8 {[%emt 0:01:55]} 86. Kg5 {
[%emt 0:00:41]} Bd4 {[%emt 0:01:28]} 87. Kg6 {[%emt 0:00:37] Black defended
with fortune. Weighted Error Value: White=0.16 (very precise) /Black=0.24 
(precise)} 1/2-1/2

[Event "44th Chess Olympiad Open 2022"]
[Site "Chennai"]
[Date "2022.08.06"]
[Round "8.38"]
[White "Croad, Nicolas"]
[Black "Rahman, Ziaur"]
[Result "1/2-1/2"]
[WhiteElo "2289"]
[BlackElo "2424"]
[Annotator "TA"]
[PlyCount "102"]
[EventDate "2022.??.??"]
[TimeControl "60"]

{[%evp 14,102,58,3,23,0,0,-4,0,0,4,-19,-24,-37,-60,-34,-39,-71,-75,-75,-75,-83,
-77,-87,-79,-84,-80,-84,-83,-89,-81,-96,-7,-18,-12,-22,0,0,0,0,0,0,0,0,27,27,
20,-8,-9,0,0,0,-1,-62,-15,-52,-24,-59,-15,-13,-12,-8,-7,-5,0,0,0,0,0,0,0,0,0,0,
146,115,152,134,110,0,0,0,0,0,0,0,0,0,0,0,0]} 1. d4 {[%emt 0:00:03]} d6 {
[%emt 0:00:19]} 2. Nf3 {[%emt 0:00:59]} g6 {[%emt 0:00:11]} 3. e4 {[%emt 0:00:
00]} Nf6 {[%emt 0:00:54]} 4. Bd3 {[%emt 0:00:13]} Bg7 {[%emt 0:00:16]} 5. h3 {
[%emt 0:00:45]} O-O {[%emt 0:00:12]} 6. O-O {[%emt 0:00:17]} Nc6 {[%emt 0:00:
00]} 7. c3 {[%emt 0:01:49]} e5 {[%emt 0:00:42]} 8. dxe5 {[%emt 0:02:09]} ({
White should try} 8. Re1 $14) 8... dxe5 {[%emt 0:02:03] B07: Pirc Defence:
Miscellaneous Systems.} 9. Qe2 {[%emt 0:03:57]} Nh5 {[%emt 0:02:24]} 10. Rd1 {
[%emt 0:05:35]} h6 {[%emt 0:05:16] [#]} 11. Na3 $146 {[%emt 0:16:47]} ({
Predecessor:} 11. Bc2 Qf6 12. Na3 Be6 13. Bb3 Rfd8 14. Be3 a6 15. Rxd8+ Rxd8
16. Rd1 Rxd1+ 17. Qxd1 Nf4 18. Bxe6 Qxe6 19. b3 {½-½ (19) Shao,W (2236)-Lee,
J (2383) Novi Sad 2019}) 11... Qe7 {[%emt 0:03:12]} 12. Nh2 {[%emt 0:07:47]}
Nf4 {[%emt 0:08:05]} 13. Bxf4 {[%emt 0:02:34]} exf4 {[%emt 0:00:07]} 14. Nc2 {
[%emt 0:04:27]} Ne5 {[%emt 0:03:28]} 15. Nf3 {[%emt 0:01:59]} Nxd3 {[%emt 0:00:
00]} 16. Qxd3 {[%emt 0:03:28]} c5 {[%emt 0:05:57] Inhibits Ncd4.} 17. Na3 {
[%emt 0:03:05][%cal Ye4e5]} b6 {[%emt 0:02:08]} 18. e5 {[%emt 0:05:10] [#]} Bb7
$1 {[%emt 0:05:16][%cal Yc8b7,Yb7d5,Yd5c6,Yc6b5] Against Qe4} (18... Bxe5 $2
19. Qe4 Bxh3 20. gxh3 $18) 19. Nc4 {[%emt 0:06:15]} Rad8 {[%emt 0:00:00]} 20.
Qe2 {[%emt 0:00:33]} Qe6 {[%emt 0:01:18]} 21. b3 {[%emt 0:05:23]} Bd5 {[%emt 0:
05:51]} 22. Re1 {[%emt 0:04:50]} b5 {[%emt 0:05:31]} (22... g5 $17 23. Rac1
Rfe8) 23. Ncd2 $1 $11 {[%emt 0:03:27]} a6 {[%emt 0:03:36]} 24. c4 {[%emt 0:00:
37]} Bc6 {[%emt 0:01:21]} 25. cxb5 {[%emt 0:00:47]} Bxb5 {[%emt 0:00:00] This
bishop pair is nice.} 26. Nc4 {[%emt 0:02:34]} g5 {[%emt 0:00:42]} 27. Rac1 {
[%emt 0:00:47]} Rfe8 {[%emt 0:02:31]} 28. Qc2 {[%emt 0:02:09] Hoping for Nd6.}
Rd5 {[%emt 0:03:18]} 29. a4 {[%emt 0:03:12]} Bxc4 {[%emt 0:00:43]} 30. Qxc4 {
[%emt 0:00:30]} Rb8 {[%emt 0:03:36]} 31. Rc3 {[%emt 0:03:04]} Bf8 {[%emt 0:01:
15]} (31... Bxe5 32. Rd3 Rxd3 33. Qxd3 Qxb3 34. Qxb3 (34. Nxe5 Qxd3 35. Nxd3 c4
$16) 34... Rxb3 35. Nxe5 $18 (35. Rxe5 Rc3 $16)) 32. Qe2 {[%emt 0:00:00]} Rbd8
{[%emt 0:01:38]} 33. Qc2 {[%emt 0:00:56]} (33. Rcc1 $11) 33... Kg7 {[%emt 0:03:
24]} (33... Be7 $15 {is more appropriate.}) 34. Rc4 {[%emt 0:03:16][%cal Yb3b4]
} Rb8 {[%emt 0:03:48]} 35. Rd1 {[%emt 0:02:15]} Rxd1+ {[%emt 0:00:00]} (35...
Be7 {keeps more tension.} 36. Rxd5 Qxd5 37. Kh2 Rd8) 36. Qxd1 {[%emt 0:00:05]}
Be7 {[%emt 0:00:13]} 37. Rc3 {[%emt 0:00:54]} h5 {[%emt 0:00:00]} 38. Rd3 {
[%emt 0:02:25]} Rg8 {[%emt 0:02:07]} 39. Nd2 {[%emt 0:00:38]} g4 {[%emt 0:02:
18]} 40. Nc4 {[%emt 0:02:19]} Kf8 {[%emt 0:05:37]} 41. hxg4 {[%emt 0:13:24]}
hxg4 {[%emt 0:01:03] Strongly threatening ...Rh8.} 42. Rd7 {[%emt 0:00:19]} g3
{[%emt 0:02:08] And now ...Qh6 would win.} 43. Rb7 {[%emt 0:00:00]} Kg7 {
[%emt 0:14:39] [#]} (43... Qg6 $11 {keeps the balance.} 44. fxg3 fxg3) 44. fxg3
$1 $16 {[%emt 0:02:20]} Rd8 {[%emt 0:02:15]} 45. Qf3 {[%emt 0:00:00]} Qg6 {
[%emt 0:02:17]} 46. Rxe7 {[%emt 0:04:48]} ({White has to play} 46. gxf4 $16
Qb1+ 47. Kf2 (47. Qf1 $2 Rd1 $19) 47... Bh4+ 48. g3 Qc2+ 49. Qe2 (49. Ke1 $2 {
leads to mate.} Rd1+ 50. Qxd1 Bxg3+ 51. Kf1 Qf2#) 49... Bxg3+ 50. Kf3 Qc3+ 51.
Kg4 Bxf4 52. Qf3 (52. Kxf4 $2 Rd4+ 53. Qe4 Qc1+ 54. Ne3 Rxe4+ 55. Kxe4 Qh1+ 56.
Kf4 Qxb7 $19) 52... Qxf3+ 53. Kxf3) 46... Qb1+ $11 {[%emt 0:00:19] The
position is equal.} 47. Kf2 $1 {[%emt 0:00:04]} Qc2+ {[%emt 0:00:23]} 48. Ke1 {
[%emt 0:00:52]} ({But not} 48. Kg1 $2 Rd1+ 49. Qxd1 Qxd1+ 50. Kf2 fxg3+ 51. Ke3
Qxb3+ 52. Kf4 Qxc4+ $19) 48... Qc1+ {[%emt 0:02:16]} 49. Kf2 {[%emt 0:00:00]}
Qc2+ {[%emt 0:00:29]} 50. Ke1 {[%emt 0:00:04]} ({Not} 50. Kg1 $2 Rd1+ 51. Qxd1
Qxd1+ 52. Kf2 fxg3+ 53. Kxg3 Qxb3+ 54. Kf2 Qxc4 $19) 50... Qb1+ {[%emt 0:00:37]
} 51. Kf2 {[%emt 0:00:05]} Qc2+ {[%emt 0:00:29] Weighted Error Value: White=0.
11 (very precise) /Black=0.13 (very precise)} 1/2-1/2